{"text_format":"3","workbook":"xlsx","n_sheets":2,"sheets":["Popis opreme","Postavke"],"not_rendered":{"defined_names":4},"read":"whole","date_system":"1900"}

{"sheet":"Popis opreme","index":0,"n_rows":35,"n_cols":6,"rows_kept":35,"merged":[[0,1,2,2],[0,4,0,5]]}
[]
[{"$nulls":4},"Markirajte stavke starije od:"]
[{"$nulls":4},4]
[]
[null,"ID OPREME","IME STAVKE","DODELJENO","DATUM IZDAVANJA","STAROST STAVKE"]
[null,"ITEM0001","stolica","Zaposleni 1",{"$f":"TODAY()-25","v":"2012-10-26"},{"$f":"IF(tblEquipmentInventory[[#This Row],[DATUM IZDAVANJA]]<>\"\",TODAY()-tblEquipmentInventory[[#This Row],[DATUM IZDAVANJA]],\"\")","v":{"v":25,"d":"25 dana"}}]
[null,"ITEM0002","laserski štampač","Zaposleni 2",{"$f":"TODAY()-479","v":"2011-07-30"},{"$f":"IF(tblEquipmentInventory[[#This Row],[DATUM IZDAVANJA]]<>\"\",TODAY()-tblEquipmentInventory[[#This Row],[DATUM IZDAVANJA]],\"\")","v":{"v":479,"d":"479 dana"}}]
[null,"ITEM0003","skener","Zaposleni 3",{"$f":"TODAY()-177","v":"2012-05-27"},{"$f":"IF(tblEquipmentInventory[[#This Row],[DATUM IZDAVANJA]]<>\"\",TODAY()-tblEquipmentInventory[[#This Row],[DATUM IZDAVANJA]],\"\")","v":{"v":177,"d":"177 dana"}}]
[null,"ITEM0004","laserski štampač","Zaposleni 7",{"$f":"TODAY()-18","v":"2012-11-02"},{"$f":"IF(tblEquipmentInventory[[#This Row],[DATUM IZDAVANJA]]<>\"\",TODAY()-tblEquipmentInventory[[#This Row],[DATUM IZDAVANJA]],\"\")","v":{"v":18,"d":"18 dana"}}]
[null,"ITEM0005","aparat za kafu","Zaposleni 20",{"$f":"TODAY()-227","v":"2012-04-07"},{"$f":"IF(tblEquipmentInventory[[#This Row],[DATUM IZDAVANJA]]<>\"\",TODAY()-tblEquipmentInventory[[#This Row],[DATUM IZDAVANJA]],\"\")","v":{"v":227,"d":"227 dana"}}]
[null,"ITEM0006","skener","Zaposleni 14",{"$f":"TODAY()-50","v":"2012-10-01"},{"$f":"IF(tblEquipmentInventory[[#This Row],[DATUM IZDAVANJA]]<>\"\",TODAY()-tblEquipmentInventory[[#This Row],[DATUM IZDAVANJA]],\"\")","v":{"v":50,"d":"50 dana"}}]
[null,"ITEM0007","sto","Zaposleni 4",{"$f":"TODAY()-120","v":"2012-07-23"},{"$f":"IF(tblEquipmentInventory[[#This Row],[DATUM IZDAVANJA]]<>\"\",TODAY()-tblEquipmentInventory[[#This Row],[DATUM IZDAVANJA]],\"\")","v":{"v":120,"d":"120 dana"}}]
[null,"ITEM0008","kopir aparat","Zaposleni 12",{"$f":"TODAY()-499","v":"2011-07-10"},{"$f":"IF(tblEquipmentInventory[[#This Row],[DATUM IZDAVANJA]]<>\"\",TODAY()-tblEquipmentInventory[[#This Row],[DATUM IZDAVANJA]],\"\")","v":{"v":499,"d":"499 dana"}}]
[null,"ITEM0009","dodatni monitor","Zaposleni 8",{"$f":"TODAY()-30","v":"2012-10-21"},{"$f":"IF(tblEquipmentInventory[[#This Row],[DATUM IZDAVANJA]]<>\"\",TODAY()-tblEquipmentInventory[[#This Row],[DATUM IZDAVANJA]],\"\")","v":{"v":30,"d":"30 dana"}}]
[null,"ITEM0010","bela tabla","Zaposleni 19",{"$f":"TODAY()-50","v":"2012-10-01"},{"$f":"IF(tblEquipmentInventory[[#This Row],[DATUM IZDAVANJA]]<>\"\",TODAY()-tblEquipmentInventory[[#This Row],[DATUM IZDAVANJA]],\"\")","v":{"v":50,"d":"50 dana"}}]
[null,"ITEM0011","kopir aparat","Zaposleni 12",{"$f":"TODAY()-450","v":"2011-08-28"},{"$f":"IF(tblEquipmentInventory[[#This Row],[DATUM IZDAVANJA]]<>\"\",TODAY()-tblEquipmentInventory[[#This Row],[DATUM IZDAVANJA]],\"\")","v":{"v":450,"d":"450 dana"}}]
[null,"ITEM0012","podloge za pisanje","Zaposleni 18",{"$f":"TODAY()-420","v":"2011-09-27"},{"$f":"IF(tblEquipmentInventory[[#This Row],[DATUM IZDAVANJA]]<>\"\",TODAY()-tblEquipmentInventory[[#This Row],[DATUM IZDAVANJA]],\"\")","v":{"v":420,"d":"420 dana"}}]
[null,"ITEM0013","dodatni monitor","Zaposleni 8",{"$f":"TODAY()-250","v":"2012-03-15"},{"$f":"IF(tblEquipmentInventory[[#This Row],[DATUM IZDAVANJA]]<>\"\",TODAY()-tblEquipmentInventory[[#This Row],[DATUM IZDAVANJA]],\"\")","v":{"v":250,"d":"250 dana"}}]
[null,"ITEM0014","aparat za kafu","Zaposleni 9",{"$f":"TODAY()-45","v":"2012-10-06"},{"$f":"IF(tblEquipmentInventory[[#This Row],[DATUM IZDAVANJA]]<>\"\",TODAY()-tblEquipmentInventory[[#This Row],[DATUM IZDAVANJA]],\"\")","v":{"v":45,"d":"45 dana"}}]
[null,"ITEM0015","podloge za pisanje","Zaposleni 13",{"$f":"TODAY()-502","v":"2011-07-07"},{"$f":"IF(tblEquipmentInventory[[#This Row],[DATUM IZDAVANJA]]<>\"\",TODAY()-tblEquipmentInventory[[#This Row],[DATUM IZDAVANJA]],\"\")","v":{"v":502,"d":"502 dana"}}]
[null,"ITEM0016","skener","Zaposleni 1",{"$f":"TODAY()-350","v":"2011-12-06"},{"$f":"IF(tblEquipmentInventory[[#This Row],[DATUM IZDAVANJA]]<>\"\",TODAY()-tblEquipmentInventory[[#This Row],[DATUM IZDAVANJA]],\"\")","v":{"v":350,"d":"350 dana"}}]
[null,"ITEM0017","kopir aparat","Zaposleni 19",{"$f":"TODAY()-125","v":"2012-07-18"},{"$f":"IF(tblEquipmentInventory[[#This Row],[DATUM IZDAVANJA]]<>\"\",TODAY()-tblEquipmentInventory[[#This Row],[DATUM IZDAVANJA]],\"\")","v":{"v":125,"d":"125 dana"}}]
[null,"ITEM0018","bela tabla","Zaposleni 15",{"$f":"TODAY()-90","v":"2012-08-22"},{"$f":"IF(tblEquipmentInventory[[#This Row],[DATUM IZDAVANJA]]<>\"\",TODAY()-tblEquipmentInventory[[#This Row],[DATUM IZDAVANJA]],\"\")","v":{"v":90,"d":"90 dana"}}]
[null,"ITEM0019","stolica","Zaposleni 16",{"$f":"TODAY()-730","v":"2010-11-21"},{"$f":"IF(tblEquipmentInventory[[#This Row],[DATUM IZDAVANJA]]<>\"\",TODAY()-tblEquipmentInventory[[#This Row],[DATUM IZDAVANJA]],\"\")","v":{"v":730,"d":"730 dana"}}]
[null,"ITEM0020","krpe za prašinu (1 komplet)","Zaposleni 3",{"$f":"TODAY()-540","v":"2011-05-30"},{"$f":"IF(tblEquipmentInventory[[#This Row],[DATUM IZDAVANJA]]<>\"\",TODAY()-tblEquipmentInventory[[#This Row],[DATUM IZDAVANJA]],\"\")","v":{"v":540,"d":"540 dana"}}]
[null,"ITEM0021","laserski štampač","Zaposleni 7",{"$f":"TODAY()-18","v":"2012-11-02"},{"$f":"IF(tblEquipmentInventory[[#This Row],[DATUM IZDAVANJA]]<>\"\",TODAY()-tblEquipmentInventory[[#This Row],[DATUM IZDAVANJA]],\"\")","v":{"v":18,"d":"18 dana"}}]
[null,"ITEM0022","laptop računar","Zaposleni 8",{"$f":"TODAY()-283","v":"2012-02-11"},{"$f":"IF(tblEquipmentInventory[[#This Row],[DATUM IZDAVANJA]]<>\"\",TODAY()-tblEquipmentInventory[[#This Row],[DATUM IZDAVANJA]],\"\")","v":{"v":283,"d":"283 dana"}}]
[null,"ITEM0023","podloge za pisanje","Zaposleni 9",{"$f":"TODAY()-479","v":"2011-07-30"},{"$f":"IF(tblEquipmentInventory[[#This Row],[DATUM IZDAVANJA]]<>\"\",TODAY()-tblEquipmentInventory[[#This Row],[DATUM IZDAVANJA]],\"\")","v":{"v":479,"d":"479 dana"}}]
[null,"ITEM0024","laserski štampač","Zaposleni 19",{"$f":"TODAY()-355","v":"2011-12-01"},{"$f":"IF(tblEquipmentInventory[[#This Row],[DATUM IZDAVANJA]]<>\"\",TODAY()-tblEquipmentInventory[[#This Row],[DATUM IZDAVANJA]],\"\")","v":{"v":355,"d":"355 dana"}}]
[null,"ITEM0025","sto","Zaposleni 7",{"$f":"TODAY()-28","v":"2012-10-23"},{"$f":"IF(tblEquipmentInventory[[#This Row],[DATUM IZDAVANJA]]<>\"\",TODAY()-tblEquipmentInventory[[#This Row],[DATUM IZDAVANJA]],\"\")","v":{"v":28,"d":"28 dana"}}]
[null,"ITEM0026","bela tabla","Zaposleni 8",{"$f":"TODAY()-28","v":"2012-10-23"},{"$f":"IF(tblEquipmentInventory[[#This Row],[DATUM IZDAVANJA]]<>\"\",TODAY()-tblEquipmentInventory[[#This Row],[DATUM IZDAVANJA]],\"\")","v":{"v":28,"d":"28 dana"}}]
[null,"ITEM0027","laptop računar","Zaposleni 19",{"$f":"TODAY()-736","v":"2010-11-15"},{"$f":"IF(tblEquipmentInventory[[#This Row],[DATUM IZDAVANJA]]<>\"\",TODAY()-tblEquipmentInventory[[#This Row],[DATUM IZDAVANJA]],\"\")","v":{"v":736,"d":"736 dana"}}]
[null,"ITEM0028","sto","Zaposleni 12",{"$f":"TODAY()-68","v":"2012-09-13"},{"$f":"IF(tblEquipmentInventory[[#This Row],[DATUM IZDAVANJA]]<>\"\",TODAY()-tblEquipmentInventory[[#This Row],[DATUM IZDAVANJA]],\"\")","v":{"v":68,"d":"68 dana"}}]
[null,"ITEM0029","skener","Zaposleni 14",{"$f":"TODAY()-67","v":"2012-09-14"},{"$f":"IF(tblEquipmentInventory[[#This Row],[DATUM IZDAVANJA]]<>\"\",TODAY()-tblEquipmentInventory[[#This Row],[DATUM IZDAVANJA]],\"\")","v":{"v":67,"d":"67 dana"}}]
[null,"ITEM0030","aparat za kafu","Zaposleni 3",{"$f":"TODAY()-149","v":"2012-06-24"},{"$f":"IF(tblEquipmentInventory[[#This Row],[DATUM IZDAVANJA]]<>\"\",TODAY()-tblEquipmentInventory[[#This Row],[DATUM IZDAVANJA]],\"\")","v":{"v":149,"d":"149 dana"}}]

{"sheet":"Postavke","index":1,"n_rows":23,"n_cols":4,"rows_kept":23}
[]
[]
[null,"ZAPOSLENI",null,"STAVKE"]
[null,"Zaposleni 1",null,"stolica"]
[null,"Zaposleni 2",null,"aparat za kafu"]
[null,"Zaposleni 3",null,"kopir aparat"]
[null,"Zaposleni 4",null,"stoni računar"]
[null,"Zaposleni 5",null,"krpe za prašinu (1 komplet)"]
[null,"Zaposleni 6",null,"dodatni monitor"]
[null,"Zaposleni 7",null,"inkjet štampač"]
[null,"Zaposleni 8",null,"laptop računar"]
[null,"Zaposleni 9",null,"laserski štampač"]
[null,"Zaposleni 10",null,"markeri (3 pakovanja)"]
[null,"Zaposleni 11",null,"skener"]
[null,"Zaposleni 12",null,"podloge za pisanje"]
[null,"Zaposleni 13",null,"sto"]
[null,"Zaposleni 14",null,"USB disk"]
[null,"Zaposleni 15",null,"bela tabla"]
[null,"Zaposleni 16"]
[null,"Zaposleni 17"]
[null,"Zaposleni 18"]
[null,"Zaposleni 19"]
[null,"Zaposleni 20"]